[Event "Betsys MČR v online bleskovém šachu 2021"]
[Site "Chess.com"]
[Date "2021.04.17"]
[Round "12"]
[White "Richter_Rudolf"]
[Black "Alesbar"]
[Result "1/2-1/2"]
[WhiteElo "1432"]
[BlackElo "1609"]
[TimeControl "180+1"]
[EndTime "11:01:32 PDT"]
[Termination "Remíza patem"]

1. d4 {[%clk 0:03:00.9]} 1... Nf6 {[%clk 0:02:59.4]} 2. c4 {[%clk 0:02:59.8]}
2... g6 {[%clk 0:02:59.3]} 3. Nc3 {[%clk 0:02:58.1]} 3... d5 {[%clk 0:02:59]} 4.
cxd5 {[%clk 0:02:57.5]} 4... Nxd5 {[%clk 0:02:58.6]} 5. e4 {[%clk 0:02:58.1]}
5... Nxc3 {[%clk 0:02:58.5]} 6. bxc3 {[%clk 0:02:58.5]} 6... Bg7 {[%clk
0:02:58.5]} 7. Nf3 {[%clk 0:02:50.7]} 7... O-O {[%clk 0:02:56.9]} 8. Bc4 {[%clk
0:02:50.6]} 8... c5 {[%clk 0:02:55.6]} 9. Ba3 {[%clk 0:02:48.7]} 9... cxd4
{[%clk 0:02:27.5]} 10. cxd4 {[%clk 0:02:12.4]} 10... Qa5+ {[%clk 0:02:17.5]} 11.
Qd2 {[%clk 0:01:52.1]} 11... Qxa3 {[%clk 0:02:16]} 12. O-O {[%clk 0:01:52.4]}
12... Nc6 {[%clk 0:02:07.5]} 13. Rab1 {[%clk 0:01:37.8]} 13... Rb8 {[%clk
0:01:50.4]} 14. e5 {[%clk 0:01:19]} 14... Qa5 {[%clk 0:01:24.6]} 15. Qxa5 {[%clk
0:00:48.6]} 15... Nxa5 {[%clk 0:01:23.8]} 16. Ba6 {[%clk 0:00:44.2]} 16... Bf5
{[%clk 0:01:16.6]} 17. Rb5 {[%clk 0:00:37.9]} 17... Bd3 {[%clk 0:00:50.9]} 18.
Rxa5 {[%clk 0:00:36.1]} 18... Bxa6 {[%clk 0:00:50.3]} 19. Rc1 {[%clk 0:00:30.5]}
19... Rfc8 {[%clk 0:00:49.2]} 20. Rxc8+ {[%clk 0:00:29]} 20... Rxc8 {[%clk
0:00:48.7]} 21. Rc5 {[%clk 0:00:29.2]} 21... Rxc5 {[%clk 0:00:44.7]} 22. dxc5
{[%clk 0:00:29.6]} 22... e6 {[%clk 0:00:37.2]} 23. Nd4 {[%clk 0:00:24.5]} 23...
Bc4 {[%clk 0:00:29.3]} 24. c6 {[%clk 0:00:23.2]} 24... bxc6 {[%clk 0:00:23]} 25.
Nxc6 {[%clk 0:00:22.9]} 25... Bxa2 {[%clk 0:00:21.7]} 26. Nxa7 {[%clk
0:00:22.5]} 26... Bxe5 {[%clk 0:00:20.9]} 27. Nc6 {[%clk 0:00:22]} 27... Bc7
{[%clk 0:00:18.8]} 28. Ne7+ {[%clk 0:00:19.7]} 28... Kg7 {[%clk 0:00:15.1]} 29.
Nc6 {[%clk 0:00:18.6]} 29... Bd5 {[%clk 0:00:13.9]} 30. Nd4 {[%clk 0:00:18.7]}
30... Bb6 {[%clk 0:00:12.7]} 31. Ne2 {[%clk 0:00:16.6]} 31... h5 {[%clk
0:00:11.8]} 32. Nf4 {[%clk 0:00:16.1]} 32... Kf6 {[%clk 0:00:09.7]} 33. Nxd5+
{[%clk 0:00:15.3]} 33... exd5 {[%clk 0:00:09.5]} 34. Kf1 {[%clk 0:00:15.7]}
34... Kf5 {[%clk 0:00:09.2]} 35. f3 {[%clk 0:00:16.2]} 35... Ke5 {[%clk
0:00:08.5]} 36. Ke2 {[%clk 0:00:16.4]} 36... g5 {[%clk 0:00:07.9]} 37. Kd3
{[%clk 0:00:16.2]} 37... f5 {[%clk 0:00:07.5]} 38. g3 {[%clk 0:00:16.2]} 38...
h4 {[%clk 0:00:06.1]} 39. gxh4 {[%clk 0:00:14]} 39... gxh4 {[%clk 0:00:05.6]}
40. h3 {[%clk 0:00:13.9]} 40... Kf4 {[%clk 0:00:04.7]} 41. Ke2 {[%clk
0:00:14.3]} 41... d4 {[%clk 0:00:03.7]} 42. Kf1 {[%clk 0:00:14.6]} 42... Kxf3
{[%clk 0:00:02]} 43. Kg1 {[%clk 0:00:11.1]} 43... d3+ {[%clk 0:00:01.6]} 44. Kf1
{[%clk 0:00:09.4]} 44... d2 {[%clk 0:00:01.6]} 1/2-1/2

[Event "Betsys MČR v online bleskovém šachu 2021"]
[Site "Chess.com"]
[Date "2021.04.17"]
[Round "12"]
[White "adasmrazek"]
[Black "ZdenekRomanek"]
[Result "0-1"]
[WhiteElo "1330"]
[BlackElo "1567"]
[TimeControl "180+1"]
[EndTime "11:01:32 PDT"]
[Termination "Uživatel ZdenekRomanek zvítězil po vzdání soupeře"]

1. e4 {[%clk 0:03:00.9]} 1... e6 {[%clk 0:02:59.4]} 2. d4 {[%clk 0:03:00]} 2...
d5 {[%clk 0:02:58.9]} 3. e5 {[%clk 0:02:59.5]} 3... c5 {[%clk 0:02:58.3]} 4. c3
{[%clk 0:02:57.8]} 4... Nc6 {[%clk 0:02:57.5]} 5. Nf3 {[%clk 0:02:56.7]} 5...
Bd7 {[%clk 0:02:56.7]} 6. Be2 {[%clk 0:02:54.2]} 6... Qb6 {[%clk 0:02:55]} 7.
Be3 {[%clk 0:02:52.8]} 7... cxd4 {[%clk 0:02:52.3]} 8. cxd4 {[%clk 0:02:49]}
8... Qxb2 {[%clk 0:02:49.9]} 9. Nbd2 {[%clk 0:02:47.8]} 9... Qb6 {[%clk
0:02:40.1]} 10. Rb1 {[%clk 0:02:47]} 10... Qc7 {[%clk 0:02:39.1]} 11. O-O {[%clk
0:02:44.5]} 11... Nge7 {[%clk 0:02:36.8]} 12. Qb3 {[%clk 0:02:39.2]} 12... Rb8
{[%clk 0:02:31.5]} 13. Bb5 {[%clk 0:02:36.6]} 13... Nf5 {[%clk 0:02:25.8]} 14.
Bxc6 {[%clk 0:02:22.2]} 14... Bxc6 {[%clk 0:02:24.8]} 15. Rfc1 {[%clk
0:02:22.8]} 15... Nxe3 {[%clk 0:02:23.1]} 16. fxe3 {[%clk 0:02:21]} 16... Be7
{[%clk 0:02:18.2]} 17. Rc3 {[%clk 0:01:46.8]} 17... O-O {[%clk 0:02:16.3]} 18.
Qc2 {[%clk 0:01:46.5]} 18... Rfc8 {[%clk 0:02:13.8]} 19. Nb3 {[%clk 0:01:36.4]}
19... f6 {[%clk 0:01:55.6]} 20. Nc5 {[%clk 0:01:32.7]} 20... Bxc5 {[%clk
0:01:53.6]} 21. Rxc5 {[%clk 0:01:32.1]} 21... Qd7 {[%clk 0:01:44.5]} 22. Qb3
{[%clk 0:01:16]} 22... h6 {[%clk 0:01:31.9]} 23. Rbc1 {[%clk 0:01:11.3]} 23...
Kf7 {[%clk 0:01:29.1]} 24. Ra5 {[%clk 0:00:55.6]} 24... a6 {[%clk 0:01:25.7]}
25. Qb6 {[%clk 0:00:53.7]} 25... Qc7 {[%clk 0:01:21.2]} 26. Qxc7+ {[%clk
0:00:50.1]} 26... Rxc7 {[%clk 0:01:20]} 27. Rac5 {[%clk 0:00:50.6]} 27... Rbc8
{[%clk 0:01:18.6]} 28. Kf2 {[%clk 0:00:43.8]} 28... f5 {[%clk 0:01:15.5]} 29.
Nh4 {[%clk 0:00:34.3]} 29... g5 {[%clk 0:01:13.5]} 30. Nf3 {[%clk 0:00:31.9]}
30... Kg6 {[%clk 0:01:12.1]} 31. h4 {[%clk 0:00:18]} 31... g4 {[%clk 0:01:09.4]}
32. Nd2 {[%clk 0:00:15.2]} 32... h5 {[%clk 0:01:01]} 33. g3 {[%clk 0:00:15.3]}
33... Kf7 {[%clk 0:00:56.4]} 34. Nb3 {[%clk 0:00:13]} 34... Ke7 {[%clk
0:00:52.3]} 35. Na5 {[%clk 0:00:12.9]} 35... Kd7 {[%clk 0:00:50.1]} 36. Nxc6
{[%clk 0:00:11.9]} 36... Rxc6 {[%clk 0:00:48.7]} 37. Rxc6 {[%clk 0:00:12.3]}
37... Rxc6 {[%clk 0:00:47.7]} 38. Rxc6 {[%clk 0:00:12.9]} 38... Kxc6 {[%clk
0:00:46.8]} 39. Ke2 {[%clk 0:00:13.5]} 39... Kb5 {[%clk 0:00:45.4]} 40. Kd3
{[%clk 0:00:13.7]} 40... Kb4 {[%clk 0:00:44.2]} 41. e4 {[%clk 0:00:05.4]} 41...
fxe4+ {[%clk 0:00:38.4]} 42. Ke3 {[%clk 0:00:05.7]} 42... Ka3 {[%clk 0:00:36]}
43. Kf4 {[%clk 0:00:05.2]} 43... Kxa2 {[%clk 0:00:34.8]} 44. Kg5 {[%clk
0:00:05.7]} 44... e3 {[%clk 0:00:34.5]} 45. Kf6 {[%clk 0:00:06.5]} 45... e2
{[%clk 0:00:34]} 46. Kxe6 {[%clk 0:00:07.4]} 46... e1=Q {[%clk 0:00:32.8]} 47.
Kf7 {[%clk 0:00:08]} 47... b5 {[%clk 0:00:31]} 48. e6 {[%clk 0:00:06.3]} 48...
b4 {[%clk 0:00:30.5]} 49. e7 {[%clk 0:00:06.2]} 49... b3 {[%clk 0:00:29.9]} 50.
e8=Q {[%clk 0:00:05.2]} 50... Qxe8+ {[%clk 0:00:28.8]} 51. Kxe8 {[%clk
0:00:05.8]} 51... b2 {[%clk 0:00:28.5]} 0-1

[Event "Betsys MČR v online bleskovém šachu 2021"]
[Site "Chess.com"]
[Date "2021.04.17"]
[Round "12"]
[White "Mitram64"]
[Black "martin1804"]
[Result "1-0"]
[WhiteElo "2102"]
[BlackElo "2205"]
[TimeControl "180+1"]
[EndTime "11:01:33 PDT"]
[Termination "Uživatel Mitram64 zvítězil matem"]

1. d4 {[%clk 0:03:00.9]} 1... Nf6 {[%clk 0:02:57.4]} 2. Nf3 {[%clk 0:03:00.5]}
2... g6 {[%clk 0:02:53.7]} 3. Bf4 {[%clk 0:02:59.4]} 3... Bg7 {[%clk 0:02:53.6]}
4. e3 {[%clk 0:02:58.7]} 4... d6 {[%clk 0:02:53.8]} 5. Be2 {[%clk 0:02:57.5]}
5... Nbd7 {[%clk 0:02:54.1]} 6. h3 {[%clk 0:02:56.7]} 6... O-O {[%clk
0:02:54.7]} 7. O-O {[%clk 0:02:55.4]} 7... c5 {[%clk 0:02:55.2]} 8. c3 {[%clk
0:02:54.6]} 8... b6 {[%clk 0:02:49.6]} 9. Nbd2 {[%clk 0:02:53.8]} 9... Bb7
{[%clk 0:02:47.3]} 10. a4 {[%clk 0:02:53.6]} 10... a6 {[%clk 0:02:45.5]} 11. Qb3
{[%clk 0:02:53]} 11... cxd4 {[%clk 0:02:37.5]} 12. cxd4 {[%clk 0:02:49.6]} 12...
Nd5 {[%clk 0:02:37.8]} 13. Bh2 {[%clk 0:02:47]} 13... a5 {[%clk 0:02:34.4]} 14.
Rfc1 {[%clk 0:02:42.4]} 14... Nb4 {[%clk 0:02:32.8]} 15. Rc3 {[%clk 0:02:28.1]}
15... e5 {[%clk 0:02:23.9]} 16. Rac1 {[%clk 0:02:24.5]} 16... Bd5 {[%clk
0:02:16.2]} 17. Bc4 {[%clk 0:02:16.9]} 17... exd4 {[%clk 0:02:00.8]} 18. exd4
{[%clk 0:01:58.6]} 18... Nf6 {[%clk 0:01:59.9]} 19. Bxd5 {[%clk 0:01:51.3]}
19... Nfxd5 {[%clk 0:02:00.8]} 20. Rc4 {[%clk 0:01:45.1]} 20... Re8 {[%clk
0:01:59.1]} 21. Qd1 {[%clk 0:01:39.4]} 21... Bh6 {[%clk 0:01:56.7]} 22. Rb1
{[%clk 0:01:27.4]} 22... Qf6 {[%clk 0:01:47.6]} 23. Qf1 {[%clk 0:01:16.4]} 23...
Re7 {[%clk 0:01:37]} 24. Re1 {[%clk 0:01:14.3]} 24... Rae8 {[%clk 0:01:36.7]}
25. Rxe7 {[%clk 0:01:13.1]} 25... Qxe7 {[%clk 0:01:37.6]} 26. Rc1 {[%clk
0:01:11.8]} 26... Qd7 {[%clk 0:01:18.7]} 27. b3 {[%clk 0:01:10.5]} 27... Qf5
{[%clk 0:01:08.9]} 28. Re1 {[%clk 0:01:04.3]} 28... Rd8 {[%clk 0:01:07.1]} 29.
Nc4 {[%clk 0:01:01]} 29... Bf4 {[%clk 0:01:02.3]} 30. Bxf4 {[%clk 0:00:58.3]}
30... Qxf4 {[%clk 0:01:03.2]} 31. Qe2 {[%clk 0:00:55.5]} 31... Nf6 {[%clk
0:00:43.9]} 32. Nxb6 {[%clk 0:00:51.1]} 32... Re8 {[%clk 0:00:42.8]} 33. Qd1
{[%clk 0:00:48.8]} 33... Ne4 {[%clk 0:00:37.3]} 34. Nc4 {[%clk 0:00:44.8]} 34...
Rc8 {[%clk 0:00:34.3]} 35. Nxa5 {[%clk 0:00:34.8]} 35... Nc3 {[%clk 0:00:32.8]}
36. Qd2 {[%clk 0:00:27.7]} 36... Qf5 {[%clk 0:00:31.3]} 37. Nc4 {[%clk
0:00:25.3]} 37... Ncd5 {[%clk 0:00:29.3]} 38. Nxd6 {[%clk 0:00:23.3]} 38... Qd7
{[%clk 0:00:29.4]} 39. Nxc8 {[%clk 0:00:22.8]} 39... Qxc8 {[%clk 0:00:30.3]} 40.
Rc1 {[%clk 0:00:21.8]} 40... Qf5 {[%clk 0:00:30.2]} 41. Rc5 {[%clk 0:00:20.4]}
41... Kg7 {[%clk 0:00:31.1]} 42. a5 {[%clk 0:00:19.8]} 42... Qb1+ {[%clk
0:00:28.8]} 43. Kh2 {[%clk 0:00:19]} 43... Qxb3 {[%clk 0:00:29.7]} 44. Qe2
{[%clk 0:00:17.2]} 44... Qb1 {[%clk 0:00:24.4]} 45. Qe5+ {[%clk 0:00:16.3]}
45... f6 {[%clk 0:00:24.7]} 46. Qe8 {[%clk 0:00:13.5]} 46... Qf5 {[%clk
0:00:22.7]} 47. Qb8 {[%clk 0:00:09.2]} 47... Ne7 {[%clk 0:00:22]} 48. Qxb4
{[%clk 0:00:07.4]} 48... Qe4 {[%clk 0:00:21.7]} 49. Qe1 {[%clk 0:00:06]} 49...
Kh6 {[%clk 0:00:22.6]} 50. Qxe4 {[%clk 0:00:04.8]} 50... f5 {[%clk 0:00:23.5]}
51. Qf4+ {[%clk 0:00:04.5]} 51... g5 {[%clk 0:00:24.4]} 52. Qxg5# {[%clk
0:00:04]} 1-0

[Event "Betsys MČR v online bleskovém šachu 2021"]
[Site "Chess.com"]
[Date "2021.04.17"]
[Round "12"]
[White "KdybyNecoTakNic"]
[Black "kubaches123"]
[Result "0-1"]
[WhiteElo "2288"]
[BlackElo "2146"]
[TimeControl "180+1"]
[EndTime "11:01:37 PDT"]
[Termination "Uživatel kubaches123 zvítězil na čas"]

1. Nf3 {[%clk 0:03:00.9]} 1... Nf6 {[%clk 0:02:59.9]} 2. g3 {[%clk 0:03:01.3]}
2... d5 {[%clk 0:02:59.6]} 3. Bg2 {[%clk 0:03:01.6]} 3... e6 {[%clk 0:03:00]} 4.
O-O {[%clk 0:03:02.1]} 4... Be7 {[%clk 0:03:00.4]} 5. d3 {[%clk 0:03:02.7]} 5...
O-O {[%clk 0:03:01]} 6. Nbd2 {[%clk 0:03:03.3]} 6... c5 {[%clk 0:03:01.4]} 7. e4
{[%clk 0:03:02]} 7... Nc6 {[%clk 0:03:01.6]} 8. Qe2 {[%clk 0:02:57.5]} 8... Qc7
{[%clk 0:02:50.9]} 9. Re1 {[%clk 0:02:54.9]} 9... dxe4 {[%clk 0:02:42.7]} 10.
dxe4 {[%clk 0:02:54.3]} 10... Nd4 {[%clk 0:02:42.8]} 11. Nxd4 {[%clk 0:02:30.7]}
11... cxd4 {[%clk 0:02:43.7]} 12. e5 {[%clk 0:02:22.7]} 12... Nd5 {[%clk
0:02:30.5]} 13. Nb3 {[%clk 0:02:18.1]} 13... Bd7 {[%clk 0:01:24.6]} 14. Nxd4
{[%clk 0:02:15.1]} 14... Rac8 {[%clk 0:01:23.4]} 15. c3 {[%clk 0:02:14.8]} 15...
a5 {[%clk 0:01:13.2]} 16. Qg4 {[%clk 0:02:10.4]} 16... Kh8 {[%clk 0:01:10.8]}
17. Bd2 {[%clk 0:02:02.2]} 17... a4 {[%clk 0:01:10.5]} 18. h4 {[%clk 0:01:53.7]}
18... a3 {[%clk 0:01:06.8]} 19. b3 {[%clk 0:01:44.2]} 19... b5 {[%clk
0:00:45.5]} 20. Rac1 {[%clk 0:01:42]} 20... Qa7 {[%clk 0:00:39.5]} 21. h5 {[%clk
0:01:32.2]} 21... h6 {[%clk 0:00:39.6]} 22. Be4 {[%clk 0:01:20.8]} 22... b4
{[%clk 0:00:36]} 23. c4 {[%clk 0:00:52.8]} 23... Qxd4 {[%clk 0:00:25.9]} 24. Be3
{[%clk 0:00:52.1]} 24... Nxe3 {[%clk 0:00:24.3]} 25. fxe3 {[%clk 0:00:52.1]}
25... Qxe5 {[%clk 0:00:23.7]} 26. Bb1 {[%clk 0:00:49.9]} 26... Bd6 {[%clk
0:00:22.6]} 27. Kg2 {[%clk 0:00:48.9]} 27... Bc6+ {[%clk 0:00:21.1]} 28. Kh2
{[%clk 0:00:46.7]} 28... Qg5 {[%clk 0:00:19.6]} 29. Qh3 {[%clk 0:00:40.6]} 29...
Rcd8 {[%clk 0:00:18.7]} 30. Rcd1 {[%clk 0:00:36.8]} 30... Be5 {[%clk 0:00:18.6]}
31. e4 {[%clk 0:00:32.3]} 31... Rxd1 {[%clk 0:00:16.2]} 32. Rxd1 {[%clk
0:00:32.7]} 32... Qe3 {[%clk 0:00:16.7]} 33. Qg2 {[%clk 0:00:27.6]} 33... Qg5
{[%clk 0:00:14]} 34. Qh3 {[%clk 0:00:25.3]} 34... Rd8 {[%clk 0:00:14.5]} 35.
Rxd8+ {[%clk 0:00:21.1]} 35... Qxd8 {[%clk 0:00:15.4]} 36. Qg2 {[%clk
0:00:20.6]} 36... Qg5 {[%clk 0:00:15]} 37. Qf3 {[%clk 0:00:17.6]} 37... Qd2+
{[%clk 0:00:14.6]} 38. Kh3 {[%clk 0:00:17.5]} 38... Kg8 {[%clk 0:00:13.7]} 39.
Bd3 {[%clk 0:00:16.3]} 39... Qg5 {[%clk 0:00:11.7]} 40. Be2 {[%clk 0:00:15]}
40... f5 {[%clk 0:00:11.9]} 41. Qf2 {[%clk 0:00:06]} 41... Bxe4 {[%clk
0:00:09.7]} 42. c5 {[%clk 0:00:06.2]} 42... f4 {[%clk 0:00:07.8]} 43. g4 {[%clk
0:00:04.7]} 43... f3 {[%clk 0:00:07.4]} 44. Bc4 {[%clk 0:00:04]} 44... Kh7
{[%clk 0:00:05]} 45. Bxe6 {[%clk 0:00:02.9]} 45... Qc1 {[%clk 0:00:05.3]} 0-1

[Event "Betsys MČR v online bleskovém šachu 2021"]
[Site "Chess.com"]
[Date "2021.04.17"]
[Round "12"]
[White "8_olda_8"]
[Black "SanyH"]
[Result "0-1"]
[WhiteElo "1783"]
[BlackElo "1618"]
[TimeControl "180+1"]
[EndTime "11:01:39 PDT"]
[Termination "Uživatel SanyH zvítězil po vzdání soupeře"]

1. d4 {[%clk 0:03:00.9]} 1... d5 {[%clk 0:02:59.3]} 2. c4 {[%clk 0:03:01.1]}
2... c6 {[%clk 0:02:59.5]} 3. Nc3 {[%clk 0:03:01.3]} 3... e6 {[%clk 0:02:59.5]}
4. Nf3 {[%clk 0:03:01.5]} 4... Nf6 {[%clk 0:02:59.8]} 5. Bf4 {[%clk 0:02:59.4]}
5... Be7 {[%clk 0:03:00.1]} 6. e3 {[%clk 0:02:59.5]} 6... O-O {[%clk 0:03:00]}
7. h3 {[%clk 0:03:00]} 7... Nbd7 {[%clk 0:02:59]} 8. Rc1 {[%clk 0:02:58.8]} 8...
a6 {[%clk 0:02:58.1]} 9. cxd5 {[%clk 0:02:58.7]} 9... exd5 {[%clk 0:02:55.7]}
10. Bd3 {[%clk 0:02:57]} 10... Nb6 {[%clk 0:02:54.6]} 11. b3 {[%clk 0:02:54.5]}
11... Bd7 {[%clk 0:02:50.3]} 12. O-O {[%clk 0:02:53.8]} 12... Rc8 {[%clk
0:02:48.1]} 13. Ne5 {[%clk 0:02:44.7]} 13... Be6 {[%clk 0:02:43.2]} 14. a4
{[%clk 0:02:42.1]} 14... Nbd7 {[%clk 0:02:35.8]} 15. Nf3 {[%clk 0:02:21.2]}
15... Ne8 {[%clk 0:02:25.9]} 16. e4 {[%clk 0:02:11.5]} 16... dxe4 {[%clk
0:02:17.3]} 17. Nxe4 {[%clk 0:02:12.4]} 17... f5 {[%clk 0:02:15.9]} 18. Neg5
{[%clk 0:02:07.9]} 18... Bd5 {[%clk 0:02:03.1]} 19. Bc4 {[%clk 0:02:07.8]} 19...
Ndf6 {[%clk 0:01:48.4]} 20. Ne6 {[%clk 0:02:05.6]} 20... Qd7 {[%clk 0:01:36]}
21. Nxf8 {[%clk 0:02:03.4]} 21... Kxf8 {[%clk 0:01:35.9]} 22. Ne5 {[%clk
0:02:04]} 22... Qd8 {[%clk 0:01:32.5]} 23. Bxd5 {[%clk 0:01:51.2]} 23... Nxd5
{[%clk 0:01:33.4]} 24. Qf3 {[%clk 0:01:49.2]} 24... Nef6 {[%clk 0:01:25]} 25.
Bg5 {[%clk 0:01:38.9]} 25... g6 {[%clk 0:01:10.7]} 26. Bh6+ {[%clk 0:01:37.1]}
26... Kg8 {[%clk 0:01:10.5]} 27. Rfe1 {[%clk 0:01:10.2]} 27... Bf8 {[%clk
0:01:09.9]} 28. Bxf8 {[%clk 0:01:09.3]} 28... Qxf8 {[%clk 0:01:09.7]} 29. Nc4
{[%clk 0:01:08.2]} 29... Ne4 {[%clk 0:00:59.3]} 30. Qd3 {[%clk 0:01:01.4]} 30...
Qh6 {[%clk 0:00:53.2]} 31. f3 {[%clk 0:00:57.3]} 31... Nef6 {[%clk 0:00:45.3]}
32. Re5 {[%clk 0:00:49.7]} 32... Qxc1+ {[%clk 0:00:43.6]} 33. Kh2 {[%clk
0:00:49.1]} 33... Qf4+ {[%clk 0:00:40.1]} 34. g3 {[%clk 0:00:49.4]} 34... Qh6
{[%clk 0:00:31]} 35. f4 {[%clk 0:00:45.3]} 35... Ng4+ {[%clk 0:00:28.4]} 36. Kg2
{[%clk 0:00:45.7]} 36... Nxe5 {[%clk 0:00:27.7]} 37. dxe5 {[%clk 0:00:46.2]}
37... Qf8 {[%clk 0:00:24.1]} 38. Nd6 {[%clk 0:00:45.8]} 38... Rc7 {[%clk
0:00:21.1]} 39. Qc4 {[%clk 0:00:44.5]} 39... Kg7 {[%clk 0:00:17.6]} 40. b4
{[%clk 0:00:43.9]} 40... Ne3+ {[%clk 0:00:17.3]} 41. Kf3 {[%clk 0:00:43.2]}
41... Nxc4 {[%clk 0:00:18.2]} 42. Nxc4 {[%clk 0:00:43.8]} 42... Qxb4 {[%clk
0:00:18.5]} 43. Nd6 {[%clk 0:00:43.8]} 43... Qc3+ {[%clk 0:00:17.7]} 44. Ke2
{[%clk 0:00:43.6]} 44... Qc2+ {[%clk 0:00:16.4]} 45. Ke3 {[%clk 0:00:43.6]}
45... Qxa4 {[%clk 0:00:16.7]} 46. Ne8+ {[%clk 0:00:43.5]} 46... Kf8 {[%clk
0:00:15.8]} 47. Nxc7 {[%clk 0:00:44.4]} 47... Qa5 {[%clk 0:00:15.2]} 48. Ne6+
{[%clk 0:00:43.7]} 48... Ke7 {[%clk 0:00:15]} 49. Nd4 {[%clk 0:00:44.6]} 49...
Qb6 {[%clk 0:00:14.3]} 50. Kd3 {[%clk 0:00:44.6]} 50... c5 {[%clk 0:00:14.1]}
51. Ne2 {[%clk 0:00:39.4]} 51... Qb3+ {[%clk 0:00:14.2]} 52. Nc3 {[%clk
0:00:38.4]} 52... c4+ {[%clk 0:00:12.1]} 53. Kd2 {[%clk 0:00:38.9]} 53... Qb2+
{[%clk 0:00:11.1]} 54. Ke3 {[%clk 0:00:39]} 54... Qxc3+ {[%clk 0:00:11.1]} 55.
Kf2 {[%clk 0:00:39.3]} 55... Qxg3+ {[%clk 0:00:11.2]} 56. Kxg3 {[%clk 0:00:39]}
56... c3 {[%clk 0:00:11.6]} 57. Kh4 {[%clk 0:00:39.5]} 57... c2 {[%clk
0:00:11.8]} 58. Kg5 {[%clk 0:00:40.4]} 58... c1=Q {[%clk 0:00:12.3]} 59. h4
{[%clk 0:00:41.3]} 59... Qg1+ {[%clk 0:00:11.7]} 60. Kh6 {[%clk 0:00:41.4]}
60... Qh2 {[%clk 0:00:10.7]} 61. Kxh7 {[%clk 0:00:40.8]} 61... Qxh4+ {[%clk
0:00:10.7]} 62. Kxg6 {[%clk 0:00:41.7]} 62... Qxf4 {[%clk 0:00:10.6]} 63. Kh5
{[%clk 0:00:41.1]} 63... Qxe5 {[%clk 0:00:11.3]} 0-1

[Event "Betsys MČR v online bleskovém šachu 2021"]
[Site "Chess.com"]
[Date "2021.04.17"]
[Round "12"]
[White "TomSedmihradsky"]
[Black "MaTpAt113"]
[Result "1-0"]
[WhiteElo "1394"]
[BlackElo "900"]
[TimeControl "180+1"]
[EndTime "11:01:40 PDT"]
[Termination "Uživatel TomSedmihradsky zvítězil na čas"]

1. d4 {[%clk 0:02:59.7]} 1... c6 {[%clk 0:03:00.9]} 2. e4 {[%clk 0:02:59]} 2...
d5 {[%clk 0:02:58.7]} 3. e5 {[%clk 0:02:56.8]} 3... Bf5 {[%clk 0:02:57.2]} 4. f4
{[%clk 0:02:52.3]} 4... e6 {[%clk 0:02:56.3]} 5. Nf3 {[%clk 0:02:51.4]} 5... c5
{[%clk 0:02:43.1]} 6. Be3 {[%clk 0:02:41]} 6... Qb6 {[%clk 0:02:24]} 7. b3
{[%clk 0:02:36.3]} 7... Nc6 {[%clk 0:02:15.3]} 8. Nc3 {[%clk 0:02:15.2]} 8...
Qb4 {[%clk 0:02:05.6]} 9. Qd2 {[%clk 0:02:00.7]} 9... O-O-O {[%clk 0:01:40.9]}
10. a3 {[%clk 0:01:52.6]} 10... Qb6 {[%clk 0:01:33.6]} 11. Na4 {[%clk
0:01:49.3]} 11... Qc7 {[%clk 0:01:24.6]} 12. Nxc5 {[%clk 0:01:34.1]} 12... Nge7
{[%clk 0:01:08.5]} 13. Bd3 {[%clk 0:01:16.9]} 13... Bxd3 {[%clk 0:00:56.9]} 14.
Qxd3 {[%clk 0:01:15.5]} 14... Nf5 {[%clk 0:00:49.5]} 15. g4 {[%clk 0:01:10.1]}
15... Nxe3 {[%clk 0:00:46.7]} 16. Qxe3 {[%clk 0:01:09.1]} 16... Bxc5 {[%clk
0:00:43]} 17. dxc5 {[%clk 0:01:07.7]} 17... d4 {[%clk 0:00:42.8]} 18. Qd3 {[%clk
0:01:05.5]} 18... Ne7 {[%clk 0:00:33.3]} 19. b4 {[%clk 0:00:58.8]} 19... Nd5
{[%clk 0:00:30.9]} 20. Qd2 {[%clk 0:00:42.7]} 20... Ne3 {[%clk 0:00:20.8]} 21.
Kf2 {[%clk 0:00:35.2]} 21... Nxg4+ {[%clk 0:00:20.5]} 22. Kg3 {[%clk 0:00:30.1]}
22... Nh6 {[%clk 0:00:20.6]} 23. Rad1 {[%clk 0:00:22.8]} 23... Nf5+ {[%clk
0:00:20.2]} 24. Kf2 {[%clk 0:00:20.2]} 24... Nh6 {[%clk 0:00:18.7]} 25. h3
{[%clk 0:00:19.2]} 25... Nf5 {[%clk 0:00:17.6]} 26. Rhg1 {[%clk 0:00:18.4]}
26... Ne3 {[%clk 0:00:16.7]} 27. Rxg7 {[%clk 0:00:15.3]} 27... Nf5 {[%clk
0:00:13.2]} 28. Rgg1 {[%clk 0:00:13.7]} 28... Ne3 {[%clk 0:00:12.3]} 29. Ke2
{[%clk 0:00:12.1]} 29... Nxd1 {[%clk 0:00:11.9]} 30. Rxd1 {[%clk 0:00:10.8]}
30... Qd7 {[%clk 0:00:10.6]} 31. Qxd4 {[%clk 0:00:08.4]} 31... Qxd4 {[%clk
0:00:09.9]} 32. Rxd4 {[%clk 0:00:08.5]} 32... Rxd4 {[%clk 0:00:09.3]} 33. Nxd4
{[%clk 0:00:08.7]} 33... Rd8 {[%clk 0:00:09.6]} 34. Nf3 {[%clk 0:00:07.8]} 34...
Rd5 {[%clk 0:00:09.1]} 35. c3 {[%clk 0:00:06.5]} 35... Kd7 {[%clk 0:00:09.4]}
36. Ng5 {[%clk 0:00:05.8]} 36... Ke7 {[%clk 0:00:06.7]} 37. Nxh7 {[%clk
0:00:05.5]} 37... Rd8 {[%clk 0:00:06.5]} 38. Nf6 {[%clk 0:00:05.4]} 38... Kf8
{[%clk 0:00:05]} 39. h4 {[%clk 0:00:04.9]} 39... Rc8 {[%clk 0:00:04.7]} 40. h5
{[%clk 0:00:04.1]} 40... b6 {[%clk 0:00:03.7]} 41. h6 {[%clk 0:00:03.8]} 41...
bxc5 {[%clk 0:00:02]} 42. h7 {[%clk 0:00:03.6]} 42... Kg7 {[%clk 0:00:02.1]} 43.
Kf3 {[%clk 0:00:03]} 1-0